fUSD/lending_fUSD_20250127
["ID","MTS","AMOUNT","RATE_DAILY","PERIOD"]
[350536696,1737949845435,-500.0,0.00011999,2]
[350536697,1737949845446,-500.0,0.00011999,2]
[350536698,1737949845458,-500.0,0.00011999,2]
[350536699,1737949845467,-500.0,0.00011999,2]
[350536700,1737949845476,-500.0,0.00011999,2]
[350536701,1737949845485,-500.0,0.00011999,2]
[350536702,1737949845495,-569.93,0.00011999,2]
[350536703,1737949845504,-500.0,0.00011999,2]
[350536704,1737949845513,-500.0,0.00011999,2]
[350536705,1737949845522,-500.0,0.00011999,2]
[350536706,1737949845531,-483.15,0.00011999,2]
[350536707,1737949845540,-500.0,0.00011999,2]
[350536708,1737949845549,-500.0,0.00011999,2]
[350536709,1737949845558,-500.0,0.00011999,2]
[350536710,1737949845567,-500.0,0.00011999,2]
[350536711,1737949845576,-500.0,0.00011999,2]
[350536712,1737949845585,-324.61,0.00011999,2]
[350536713,1737949845595,-500.0,0.00011999,2]
[350536714,1737949845604,-500.0,0.00011999,2]
[350536715,1737949845613,-500.0,0.00011999,2]
[350536716,1737949845622,-500.0,0.00011999,2]
[350536717,1737949845631,-367.71,0.00011999,2]
[350536718,1737949845642,-306.91375167,0.00011999,2]
[350536719,1737949845650,-500.0,0.00011999,2]
[350536720,1737949845659,-500.0,0.00011999,2]
[350536721,1737949845668,-500.0,0.00011999,2]
[350536722,1737949845677,-500.0,0.00011999,2]
[350536723,1737949845687,-500.0,0.00011999,2]
[350536724,1737949845695,-500.0,0.00011999,2]
[350536725,1737949845705,-500.0,0.00011999,2]
[350536726,1737949845714,-500.0,0.00011999,2]
[350536727,1737949845723,-454.97,0.00011999,2]
[350536728,1737949845732,-500.0,0.00011999,2]
[350536729,1737949845741,-500.0,0.00011999,2]
[350536730,1737949845750,-500.0,0.00011999,2]
[350536731,1737949845759,-500.0,0.00011999,2]
[350536732,1737949845767,-423.94,0.00011999,2]
[350536733,1737949845777,-252.97,0.00011999,2]
[350536734,1737949845785,-500.0,0.00011999,2]
[350536735,1737949845795,-500.0,0.00011999,2]
[350536736,1737949845805,-500.0,0.00011999,2]
[350536737,1737949845814,-500.0,0.00011999,2]
[350536738,1737949845823,-311.4,0.00011999,2]
[350536739,1737949845833,-592.75,0.00011999,2]
[350536740,1737949845842,-500.0,0.00011999,2]
[350536741,1737949845851,-500.0,0.00011999,2]
[350536742,1737949845860,-500.0,0.00011999,2]
[350536743,1737949845870,-386.93,0.00011999,2]
[350536744,1737949845879,-500.0,0.00011999,2]
[350536745,1737949845892,-500.0,0.00011999,2]
[350536746,1737949845905,-359.49,0.00011999,2]
[350536747,1737949845914,-494.84,0.00011999,2]
[350536748,1737949845924,-514.79,0.00011999,2]
[350536749,1737949845935,-514.79,0.00011999,2]
[350536750,1737949845945,-514.79,0.00011999,2]
[350536751,1737949845954,-514.79,0.00011999,2]
[350536752,1737949845964,-514.79,0.00011999,2]
[350536753,1737949845973,-514.79,0.00011999,2]
[350536754,1737949845982,-514.79,0.00011999,2]
[350536755,1737949845992,-514.79,0.00011999,2]
[350536756,1737949846001,-514.79,0.00011999,2]
[350536757,1737949846011,-500.0,0.00011999,2]
[350536758,1737949846020,-514.79,0.00011999,2]
[350536759,1737949846030,-500.0,0.00011999,2]
[350536760,1737949846040,-514.79,0.00011999,2]
[350536761,1737949846049,-612.06,0.00011999,2]
[350536762,1737949846059,-514.79,0.00011999,2]
[350536763,1737949846068,-514.79,0.00011999,2]
[350536764,1737949846078,-514.79,0.00011999,2]
[350536765,1737949846088,-514.79,0.00011999,2]
[350536766,1737949846097,-500.0,0.00011999,2]
[350536767,1737949846107,-514.79,0.00011999,2]
[350536768,1737949846116,-514.79,0.00011999,2]
[350536769,1737949846126,-514.79,0.00011999,2]
[350536770,1737949846135,-500.0,0.00011999,2]
[350536771,1737949846148,-514.79,0.00011999,2]
[350536773,1737949846158,-500.0,0.00011999,2]
[350536774,1737949846168,-514.79,0.00011999,2]
[350536775,1737949846177,-514.79,0.00011999,2]
[350536776,1737949846186,-500.0,0.00011999,2]
[350536777,1737949846196,-514.79,0.00011999,2]
[350536778,1737949846205,-468.82,0.00011999,2]
[350536779,1737949846214,-514.92,0.00011999,2]
[350536780,1737949846223,-500.0,0.00011999,2]
[350536781,1737949846232,-628.51464248,0.00011999,2]
[350536782,1737949846242,-500.0,0.00011999,2]
[350536783,1737949846250,-500.0,0.00011999,2]
[350536784,1737949846259,-500.0,0.00011999,2]
[350536785,1737949846269,-159.03,0.00011999,2]
[350536786,1737949846278,-500.0,0.00011999,2]
[350536787,1737949846287,-500.0,0.00011999,2]
[350536788,1737949846297,-500.0,0.00011999,2]
[350536789,1737949846306,-500.0,0.00011999,2]
[350536790,1737949846316,-172.41,0.00011999,2]
[350536791,1737949846326,-500.0,0.00011999,2]
[350536792,1737949846336,-500.0,0.00011999,2]
[350536793,1737949846345,-500.0,0.00011999,2]
[350536794,1737949846355,-616.18,0.00011999,2]
[350536795,1737949846365,-500.0,0.00011999,2]
[350536796,1737949846379,-500.0,0.00011999,2]
[350536797,1737949846388,-500.0,0.00011999,2]
[350536798,1737949846399,-570.69,0.00011999,2]
[350536799,1737949846408,-253.09,0.00011999,2]
[350536800,1737949846418,-500.0,0.00011999,2]
[350536801,1737949846428,-500.0,0.00011999,2]
[350536802,1737949846437,-500.0,0.00011999,2]
[350536803,1737949846447,-500.0,0.00011999,2]
[350536804,1737949846456,-516.88,0.00011999,2]
[350536805,1737949846465,-500.0,0.00011999,2]
[350536806,1737949846475,-500.0,0.00011999,2]
[350536807,1737949846485,-500.0,0.00011999,2]
[350536808,1737949846494,-436.98,0.00011999,2]
[350536809,1737949846503,-500.0,0.00011999,2]
[350536810,1737949846512,-600.0,0.00011999,2]
[350536811,1737949846521,-821.0,0.00012,2]
[350536812,1737949846531,-199.78106592,0.00012,2]
[350536813,1737949846540,-392100.07478861,0.00012,2]
[350536814,1737949846550,-1393772.50575451,0.00012,2]
[350536815,1737949846568,-4103.025859,0.00012,2]
[350536816,1737949846579,-339.959,0.00012,2]
[350536817,1737949846590,-490.44403302,0.00012,2]
[350536818,1737949846602,-382.92113158,0.00012,2]
[350536819,1737949846613,-44880.70010996,0.00012,2]
[350536820,1737949846624,-22962.09038652,0.00012,2]
[350536821,1737949846647,-500.0,0.00010958,2]
[350536822,1737949846656,-101727.49601959,0.00012,2]
[350536823,1737949846825,-500.0,0.00011999,2]
[350536824,1737949846835,-500.0,0.00011999,2]
[350536825,1737949846845,-500.0,0.00011999,2]
[350536826,1737949846854,-500.0,0.00011999,2]
[350536827,1737949846864,-500.0,0.00011999,2]
[350536828,1737949846873,-321.0,0.00011999,2]
[350536829,1737949846894,-2103.20947288,0.00011784,2]
[350536851,1737950481879,164.1,0.00016658,30]
[350536852,1737950514925,444.95,9.293e-05,2]
[350536856,1737950824835,175.67,8.632e-05,2]
[350536920,1737950960443,1000.0,0.00022,120]
[350536994,1737951031580,-194.11,0.00010795,2]
[350536995,1737951031589,-191.6020842,0.00010804,2]
[350536996,1737951031598,-9138.0,0.00010858,2]
[350536997,1737951031610,-6273.62,0.00010904,2]
[350536998,1737951031621,-779.84,0.00010923,2]
[350536999,1737951031632,-777.4000006,0.00010923,2]
[350537000,1737951031642,-150.0,0.00010957,2]
[350537001,1737951031653,-500.0,0.00010958,2]
[350537002,1737951031663,-500.0,0.00010958,2]
[350537003,1737951031672,-321.39939271,0.00010958,2]
[350537004,1737951031682,-500.0,0.00010958,2]
[350537005,1737951031692,-512.86303271,0.00010958,2]
[350537006,1737951031702,-500.0,0.00010958,2]
[350537007,1737951031713,-512.22699513,0.00010958,2]
[350537008,1737951031723,-500.0,0.00010958,2]
[350537009,1737951031734,-537.01318361,0.00010958,2]
[350537010,1737951031745,-507.18386865,0.00010958,2]
[350537011,1737951031756,-500.0,0.00010958,2]
[350537012,1737951031767,-585.97224379,0.00010958,2]
[350537013,1737951031777,-505.52001371,0.00010958,2]
[350537014,1737951031788,-505.97398955,0.00010958,2]
[350537015,1737951031799,-511.35061459,0.00010958,2]
[350537016,1737951031811,-500.0,0.00010958,2]
[350537017,1737951031822,-507.08339668,0.00010958,2]
[350537018,1737951031832,-505.29242192,0.00010958,2]
[350537019,1737951031844,-504.26106128,0.00010958,2]
[350537020,1737951031855,-500.0,0.00010958,2]
[350537021,1737951031866,-500.0,0.00010958,2]
[350537022,1737951031876,-500.0,0.00010958,2]
[350537023,1737951031887,-500.0,0.00010958,2]
[350537024,1737951031898,-514.62463908,0.00010958,2]
[350537025,1737951031909,-500.0,0.00010958,2]
[350537026,1737951031920,-500.0,0.00010958,2]
[350537027,1737951031930,-510.5770386,0.00010958,2]
[350537028,1737951031940,-500.0,0.00010958,2]
[350537029,1737951031950,-506.28586868,0.00010958,2]
[350537030,1737951031963,-500.0,0.00010958,2]
[350537031,1737951031973,-500.0,0.00010958,2]
[350537032,1737951031984,-517.58538464,0.00010958,2]
[350537033,1737951031995,-523.9045546,0.00010958,2]
[350537035,1737951032005,-503.19537136,0.00010958,2]
[350537037,1737951032015,-500.0,0.00010958,2]
[350537040,1737951032026,-530.75141877,0.00010958,2]
[350537042,1737951032036,-513.01352326,0.00010958,2]
[350537044,1737951032047,-508.42184935,0.00010958,2]
[350537046,1737951032057,-514.94509747,0.00010958,2]
[350537048,1737951032068,-508.91450047,0.00010958,2]
[350537050,1737951032079,-505.88887589,0.00010958,2]
[350537053,1737951032089,-500.0,0.00010958,2]
[350537055,1737951032100,-516.75931884,0.00010958,2]
[350537057,1737951032111,-514.77551842,0.00010958,2]
[350537059,1737951032121,-517.79778541,0.00010958,2]
[350537061,1737951032132,-504.29490066,0.00010958,2]
[350537063,1737951032142,-505.88157477,0.00010958,2]
[350537065,1737951032153,-515.69967816,0.00010958,2]
[350537070,1737951032164,-511.54535988,0.00010958,2]
[350537073,1737951032174,-506.20144382,0.00010958,2]
[350537076,1737951032185,-500.0,0.00010958,2]
[350537078,1737951032196,-509.9513943,0.00010958,2]
[350537080,1737951032206,-502.81089615,0.00010958,2]
[350537082,1737951032217,-500.0,0.00010958,2]
[350537084,1737951032230,-500.0,0.00010958,2]
[350537087,1737951032240,-500.0,0.00010958,2]
[350537089,1737951032250,-506.36942277,0.00010958,2]
[350537091,1737951032260,-503.46220086,0.00010958,2]
[350537093,1737951032272,-449.10557995,0.00010958,2]
[350537095,1737951032282,-500.0,0.00010958,2]
[350537097,1737951032293,-630.00789582,0.00010958,2]
[350537099,1737951032304,-514.23193861,0.00010958,2]
[350537101,1737951032314,-514.31763192,0.00010958,2]
[350537104,1737951032325,-509.69729503,0.00010958,2]
[350537106,1737951032335,-513.60635605,0.00010958,2]
[350537108,1737951032346,-500.0,0.00010958,2]
[350537110,1737951032356,-507.76503554,0.00010958,2]
[350537112,1737951032366,-510.05438912,0.00010958,2]
[350537114,1737951032377,-500.0,0.00010958,2]
[350537116,1737951032388,-500.0,0.00010958,2]
[350537118,1737951032399,-540.70731697,0.00010958,2]
[350537121,1737951032410,-612.56,0.00010958,2]
[350537123,1737951032421,-300.0,0.00010964,2]
[350537125,1737951032432,-401.88,0.00010996,2]
[350537127,1737951032443,-150.0,0.00011016,2]
[350537129,1737951032454,-202.13,0.00011095,2]
[350537131,1737951032465,-1000.0,0.00011095,2]
[350537134,1737951032475,-1426.23,0.00011152,2]
[350537136,1737951032486,-250.0,0.00011318,2]
[350537138,1737951032496,-1500.0,0.00011427,2]
[350537140,1737951032506,-444.95,0.00011557,2]
[350537142,1737951032516,-357.67461904,0.00011692,2]
[350537144,1737951032527,-865.9117214,0.0001176,2]
[350537146,1737951032537,-1341.56604617,0.00011845,2]
[350537148,1737951032547,-1341.56604617,0.00011846,2]
[350537149,1737951032558,-1341.56604617,0.00011848,2]
[350537150,1737951032568,-3648.6751,0.000119,2]
[350537151,1737951032579,-279.97825741,0.000119,2]
[350537158,1737951037480,-1236.8,0.000119,2]
[350537160,1737951037533,-1014.5,0.000119,2]
[350537161,1737951037587,-637.91481303,0.000119,2]
[350537162,1737951037598,-1276.84914392,0.000119,2]
[350537163,1737951037609,-665.94908516,0.000119,2]
[350537164,1737951037619,-394.74285222,0.000119,2]
[350537165,1737951037629,-186.28849728,0.000119,2]
[350537166,1737951037639,-467.11114441,0.000119,2]
[350537167,1737951037650,-167.70256464,0.000119,2]
[350537168,1737951037660,-570.16993264,0.000119,2]
[350537169,1737951037670,-1341.56604617,0.00011906,2]
[350537170,1737951037680,-1341.56604617,0.00011918,2]
[350537171,1737951037690,-166.42722032,0.00011973,2]
[350537172,1737951037700,-255.0,0.00011998,2]
[350537173,1737951037713,-500.0,0.00011999,2]
[350537174,1737951037723,-500.0,0.00011999,2]
[350537175,1737951037733,-260.88025039,0.00011999,2]
[350537176,1737951037743,-500.0,0.00011999,2]
[350537177,1737951037753,-500.0,0.00011999,2]
[350537178,1737951037764,-500.0,0.00011999,2]
[350537179,1737951037780,-566.20210403,0.00011999,2]
[350537180,1737951037791,-500.0,0.00011999,2]
[350537181,1737951037801,-522.17619422,0.00011999,2]
[350537182,1737951037811,-532.36977603,0.00011999,2]
[350537183,1737951037822,-500.0,0.00011999,2]
[350537184,1737951037832,-380.1869521,0.00011999,2]
[350537185,1737951037842,-396.3515402,0.00011999,2]
[350537186,1737951037852,-500.0,0.00011999,2]
[350537188,1737951037863,-585.52,0.00011999,2]
[350537191,1737951037872,-500.0,0.00011999,2]
[350537193,1737951037883,-500.0,0.00011999,2]
[350537195,1737951037892,-527.92,0.00011999,2]
[350537197,1737951037903,-500.0,0.00011999,2]
[350537199,1737951037914,-500.0,0.00011999,2]
[350537201,1737951037925,-199.42133707,0.00011999,2]
[350537204,1737951037938,-300.57866293,0.00011999,2]
[350537206,1737951037948,-239.2,0.00011999,2]
[350537208,1737951037958,-500.0,0.00011999,2]
[350537210,1737951037971,-12.22133707,0.00011999,2]
[350537212,1737951037984,-487.77866293,0.00011999,2]
[350537213,1737951037994,-500.0,0.00011999,2]
[350537214,1737951038005,-225.86,0.00011999,2]
[350537215,1737951038015,-500.0,0.00011999,2]
[350537217,1737951038026,-500.0,0.00011999,2]
[350537219,1737951038036,-511.7447882,0.00011999,2]
[350537221,1737951038046,-194.49177999,0.00011999,2]
[350537223,1737951038056,-500.0,0.00011999,2]
[350537225,1737951038066,-184.65,0.00011999,2]
[350537227,1737951038076,-603.10929892,0.00011999,2]
[350537229,1737951038087,-500.0,0.00011999,2]
[350537231,1737951038097,-500.0,0.00011999,2]
[350537232,1737951038110,-500.0,0.00011999,2]
[350537233,1737951038121,-512.99031839,0.00011999,2]
[350537234,1737951038131,-500.0,0.00011999,2]
[350537235,1737951038142,-500.0,0.00011999,2]
[350537236,1737951038152,-500.0,0.00011999,2]
[350537237,1737951038162,-500.0,0.00011999,2]
[350537238,1737951038172,-500.0,0.00011999,2]
[350537239,1737951038184,-500.0,0.00011999,2]
[350537240,1737951038197,-500.0,0.00011999,2]
[350537241,1737951038207,-500.0,0.00011999,2]
[350537242,1737951038220,-500.0,0.00011999,2]
[350537243,1737951038231,-505.52755544,0.00011999,7]
[350537244,1737951038242,-500.0,0.00011999,2]
[350537245,1737951038252,-500.0,0.00011999,2]
[350537246,1737951038262,-223.91,0.00011999,2]
[350537247,1737951038272,-500.0,0.00011999,2]
[350537248,1737951038283,-500.0,0.00011999,2]
[350537249,1737951038293,-500.0,0.00011999,2]
[350537250,1737951038302,-313.99970933,0.00011999,2]
[350537251,1737951038320,-193.35664022,0.00011999,2]
[350537252,1737951038330,-500.0,0.00011999,2]
[350537253,1737951038340,-35.70887317,0.00011999,2]
[350537254,1737951038352,-464.29112683,0.00011999,2]
[350537255,1737951038362,-20.70642835,0.00011999,2]
[350537263,1737951039587,-624.47949143,0.00011999,2]
[350537264,1737951039598,-500.0,0.00011999,2]
[350537265,1737951039609,-1066.0,0.00012,2]
[350537266,1737951039620,-200853.43092203,0.00012,2]
[350537267,1737951039695,-627.8111,0.00012,2]
[350537268,1737951039709,-3552.3,0.00012,2]
[350537269,1737951039725,-6081.4,0.00012,2]
[350537270,1737951040003,-392.624,0.00012,2]
[350537271,1737951040014,-8575.8276865,0.00012,2]
[350537272,1737951040026,-420.11856,0.00012,2]
[350537273,1737951040037,-652.01062997,0.00012,2]
[350537293,1737951042536,-331.39114201,0.00012,2]
[350537301,1737951042643,-1277.4000006,0.00012,2]
[350537302,1737951042654,-2339.16754117,0.00012,2]
[350537303,1737951042696,-796.59216799,0.00012,2]
[350537304,1737951042855,-3006.85581734,0.00012,2]
[350537305,1737951042864,-999494.89051529,0.00012,2]
[350537308,1737951045676,-958.0,0.00012,2]
[350537309,1737951045685,-436.02104599,0.00012,2]
[350537310,1737951045696,-10210.0,0.00012,2]
[350537311,1737951045783,-387.82,0.00012,2]
[350537312,1737951045794,-4836.62071588,0.00012,2]
[350537313,1737951045836,-3835.79022712,0.00012,2]
[350537314,1737951045998,-8192.0999091,0.00012,2]
[350537319,1737951257431,675.0,0.00022,120]
[350537320,1737951303082,1152.83153821,0.00022,120]
[350537321,1737951393975,155.89,0.00016658,30]
[350537325,1737951937274,275.16771606,8e-05,2]
[350537342,1737952125146,17013.07073313,8e-05,2]
[350537527,1737952231924,-300.0,9.999e-05,2]
[350537528,1737952231934,-63.36010393,9.999e-05,2]
[350537529,1737952232211,-86.63989607,9.999e-05,2]
[350537530,1737952232221,-300.0,9.999e-05,2]
[350537531,1737952232230,-432.0,0.0001,2]
[350537532,1737952232239,-5247.71368953,0.0001,2]
[350537533,1737952236063,-20210.02960001,0.0001,2]
[350537534,1737952236121,-8293.72,0.0001,2]
[350537535,1737952236133,-332.25191999,0.0001,2]
[350537536,1737952236235,-546.91306745,0.0001,2]
[350537537,1737952236247,-809.00479,0.0001,2]
[350537691,1737952237903,-544.37372712,0.0001,2]
[350537693,1737952237915,-590.85093483,0.0001,2]
[350537696,1737952237933,-1399.46589341,0.0001,2]
[350537699,1737952237944,-2015.0,0.0001,2]
[350537701,1737952237956,-1847.50515151,0.0001,2]
[350537703,1737952237967,-1010.0,0.0001,2]
[350537705,1737952237978,-25267.5,0.0001,2]
[350537908,1737952240035,-471.72278945,0.0001,2]
[350537921,1737952240148,-5823.0,0.0001,2]
[350537928,1737952240205,-1000.00696373,0.0001,2]
[350537930,1737952240217,-5966.05236276,0.0001,2]
[350537936,1737952240264,-336.44,0.0001,2]
[350538209,1737952242922,-1163.79999995,0.0001,2]
[350538210,1737952242935,-999494.89051529,0.0001,2]
[350538217,1737952243034,-2555.56140043,0.0001,2]
[350538246,1737952245765,-887.857867,0.0001,2]
[350538252,1737952245823,-1307408.00053475,0.0001,2]
[350538253,1737952245834,-156.52,0.00010137,2]
[350538254,1737952245843,-255.55177213,0.000105,2]
[350538255,1737952245853,-14370.01533344,0.00010677,2]
[350538256,1737952245863,-197.09,0.00010677,2]
[350538257,1737952245873,-326.02,0.00010738,2]
[350538258,1737952245883,-3731.87,0.00010748,2]
[350538259,1737952245893,-807.71,0.00010765,2]
[350538260,1737952245903,-163.8258941,0.00010767,2]
[350538261,1737952245913,-601.48371139,0.00010767,2]
[350538262,1737952245922,-48470.74953909,0.000108,2]
[350538263,1737952245931,-977.13,0.00010867,2]
[350538264,1737952245940,-250.0,0.00010945,2]
[350538265,1737952245950,-500.0,0.00010958,2]
[350538266,1737952245960,-511.44014099,0.00010958,2]
[350538267,1737952245970,-500.0,0.00010958,2]
[350538268,1737952245980,-501.47202,0.00010958,2]
[350538269,1737952245990,-500.0,0.00010958,2]
[350538270,1737952245999,-500.0,0.00010958,2]
[350538271,1737952246009,-500.0,0.00010958,2]
[350538272,1737952246018,-500.0,0.00010958,2]
[350538273,1737952246028,-500.0,0.00010958,2]
[350538274,1737952246038,-342.25819133,0.00010958,2]
[350538275,1737952246047,-500.0,0.00010958,2]
[350538276,1737952246057,-632.07,0.00010958,2]
[350538277,1737952246066,-420.0,0.00010999,2]
[350538278,1737952246076,-255.0,0.00010999,2]
[350538279,1737952246085,-736.67986234,0.00011099,2]
[350538280,1737952246095,-736.67986225,0.00011099,2]
[350538281,1737952246104,-736.67986225,0.00011099,2]
[350538282,1737952246114,-736.67986225,0.00011099,2]
[350538283,1737952246124,-736.67986225,0.00011099,2]
[350538284,1737952246134,-736.67986225,0.00011099,2]
[350538285,1737952246143,-254.95,0.0001125,2]
[350538286,1737952246153,-249.53,0.0001125,2]
[350538287,1737952246162,-254.91,0.0001125,2]
[350538288,1737952246172,-247.22,0.0001125,2]
[350538289,1737952246181,-2000.0,0.0001125,2]
[350538290,1737952246193,-736.67986225,0.00011279,2]
[350538291,1737952246202,-163.8258941,0.00011349,2]
[350538292,1737952246212,-800.0,0.000114,4]
[350538293,1737952246222,-438.93,0.00011441,2]
[350538294,1737952246231,-773.87,0.00011441,2]
[350538296,1737952246241,-773.87,0.00011441,2]
[350538298,1737952246251,-438.93,0.00011441,2]
[350538300,1737952246260,-438.37,0.00011441,2]
[350538301,1737952246270,-773.87,0.00011441,2]
[350538302,1737952246279,-773.87,0.00011441,2]
[350538304,1737952246288,-250.0,0.00011449,2]
[350538306,1737952246298,-736.67986225,0.00011486,2]
[350538307,1737952246307,-1000.0,0.00011487,2]
[350538309,1737952246316,-1600.0,0.000115,4]
[350538311,1737952246326,-58575.08649613,0.00011527,2]
[350538312,1737952246339,-975.91350387,0.00011527,2]
[350538313,1737952246348,-448.18,0.00011535,2]
[350538314,1737952246358,-1081.97166002,0.000116,4]
[350538315,1737952246385,-500.0,0.00010958,2]
[350538316,1737952246395,-1318.02833998,0.000116,4]
[350538317,1737952246404,-190.46684563,0.00011625,2]
[350538318,1737952246423,-11.66315437,0.00011625,2]
[350538319,1737952246432,-393.99622197,0.00011679,2]
[350538320,1737952246443,-2897.17392615,0.000117,4]
[350538321,1737952298747,354.62021372,9.581e-05,7]
[350538322,1737952299071,1927.57508246,9.581e-05,7]
[350538323,1737952368508,809.46,8.906e-05,2]
[350538329,1737952670621,214.23,0.00016658,30]
[350538359,1737953319892,165.9,7.886e-05,2]
[350538763,1737953431891,-310.7802346,9.705e-05,2]
[350538764,1737953431949,-234.4897654,9.705e-05,2]
[350538765,1737953431959,-537.6522075,9.722e-05,2]
[350538766,1737953432006,-325.9444125,9.722e-05,2]
[350538767,1737953432017,-945.6,9.771e-05,2]
[350538768,1737953432026,-337.98,9.777e-05,2]
[350538769,1737953432036,-16486.0,9.801e-05,2]
[350538770,1737953432045,-250.0,9.878e-05,2]
[350538771,1737953432055,-1500.0,9.958e-05,2]
[350538772,1737953432064,-7181.49196835,9.958e-05,2]
[350538773,1737953432073,-23900.0,9.985e-05,2]
[350538774,1737953432083,-159.23,0.00010137,2]
[350538775,1737953432092,-250.0,0.0001015,2]
[350538776,1737953432102,-312.73,0.00010209,2]
[350538777,1737953432111,-1426.23,0.00010284,2]
[350538778,1737953432121,-12106.0,0.00010321,2]
[350538779,1737953432131,-300.0,0.00010352,2]
[350538780,1737953432140,-250.0,0.00010389,2]
[350538781,1737953432149,-174.66,0.00010419,2]
[350538782,1737953432159,-243.44,0.00010554,2]
[350538783,1737953432168,-1000.0,0.00010649,2]
[350538784,1737953432180,-1007.14,0.00010663,2]
[350538785,1737953432190,-171.05,0.00010699,2]
[350538786,1737953432200,-734.2,0.00010699,2]
[350538787,1737953432210,-438.93,0.000108,2]
[350538788,1737953432220,-773.87,0.000108,2]
[350538789,1737953432231,-150.0,0.00010857,2]
[350538790,1737953432240,-732.18448314,0.00010858,2]
[350538791,1737953432250,-3648.6751,0.00010864,2]
[350538792,1737953432259,-186.28849728,0.000109,2]
[350538793,1737953432269,-360.71,0.00010941,2]
[350538794,1737953432278,-1000.0,0.00010957,2]
[350538795,1737953432288,-11759.41971578,0.00010957,2]
[350538796,1737953432298,-500.0,0.00010958,2]
[350538797,1737953432307,-500.0,0.00010958,2]
[350538798,1737953432316,-500.0,0.00010958,2]
[350538799,1737953432326,-504.60358146,0.00010958,2]
[350538800,1737953432335,-500.0,0.00010958,2]
[350538801,1737953432345,-500.0,0.00010958,2]
[350538802,1737953432354,-500.0,0.00010958,2]
[350538803,1737953432363,-292.56211951,0.00010958,2]
[350538804,1737953432373,-506.19806949,0.00010958,2]
[350538805,1737953432382,-508.4669117,0.00010958,2]
[350538806,1737953432391,-514.38497589,0.00010958,2]
[350538807,1737953432400,-500.0,0.00010958,2]
[350538808,1737953432409,-500.0,0.00010958,2]
[350538809,1737953432419,-639.28729887,0.00010958,2]
[350538810,1737953432431,-500.0,0.00010958,2]
[350538811,1737953432440,-500.0,0.00010958,2]
[350538813,1737953432450,-228.19442843,0.00010958,2]
[350538815,1737953432459,-522.44532919,0.00010958,2]
[350538817,1737953432468,-500.0,0.00010958,2]
[350538819,1737953432478,-500.0,0.00010958,2]
[350538821,1737953432487,-500.0,0.00010958,2]
[350538823,1737953432496,-500.0,0.00010958,2]
[350538825,1737953432506,-500.0,0.00010958,2]
[350538827,1737953432515,-500.0,0.00010958,2]
[350538829,1737953432525,-500.0,0.00010958,2]
[350538831,1737953432534,-500.0,0.00010958,2]
[350538832,1737953432544,-499.8802275,0.00010958,2]
[350538834,1737953432553,-500.0,0.00010958,2]
[350538836,1737953432563,-500.0,0.00010958,2]
[350538838,1737953432572,-514.58293476,0.00010958,2]
[350538840,1737953432581,-500.0,0.00010958,2]
[350538842,1737953432590,-500.0,0.00010958,2]
[350538844,1737953432599,-621.00902689,0.00010958,2]
[350538846,1737953432608,-500.0,0.00010958,2]
[350538848,1737953432618,-500.0,0.00010958,2]
[350538849,1737953432627,-500.0,0.00010958,2]
[350538850,1737953432636,-500.0,0.00010958,2]